[Event "Early-Titled-Tuesday-Blitz-October-17-2023"]
[Site "Chess.com"]
[Date "2023.10.17"]
[Round "6"]
[White "Happy1712Drummer"]
[Black "GeorgiosSouleidis"]
[Result "0-1"]
[WhiteElo "2381"]
[BlackElo "2610"]
[TimeControl "180+1"]
[EndTime "9:10:20 PDT"]
[Termination "GeorgiosSouleidis won on time"]

1. e4 {[%clk 0:03:00.9]} 1... c5 {[%clk 0:03:00]} 2. Nf3 {[%clk 0:03:00.3]} 2...
e6 {[%clk 0:03:00.5]} 3. c3 {[%clk 0:03:00.4]} 3... d5 {[%clk 0:03:00.5]} 4. e5
{[%clk 0:03:01]} 4... d4 {[%clk 0:03:00.5]} 5. Bd3 {[%clk 0:03:01.3]} 5... Bd7
{[%clk 0:03:00.8]} 6. O-O {[%clk 0:02:09.7]} 6... Bc6 {[%clk 0:03:00.7]} 7. Re1
{[%clk 0:02:10.1]} 7... g5 {[%clk 0:02:55]} 8. h3 {[%clk 0:01:52.1]} 8... h5
{[%clk 0:02:52.7]} 9. Be4 {[%clk 0:00:56.7]} 9... g4 {[%clk 0:02:48.8]} 10. Nh2
{[%clk 0:00:53.9]} 10... gxh3 {[%clk 0:02:43.3]} 11. gxh3 {[%clk 0:00:47.4]}
11... Ne7 {[%clk 0:02:41.8]} 12. d3 {[%clk 0:00:46.3]} 12... Bxe4 {[%clk
0:02:34.4]} 13. Rxe4 {[%clk 0:00:43.5]} 13... Nbc6 {[%clk 0:02:34.3]} 14. Bg5
{[%clk 0:00:31.8]} 14... Qc7 {[%clk 0:02:05.6]} 15. f4 {[%clk 0:00:27]} 15...
Nf5 {[%clk 0:01:59.2]} 16. Na3 {[%clk 0:00:22.4]} 16... Be7 {[%clk 0:01:51.3]}
17. Nf3 {[%clk 0:00:19.7]} 17... O-O-O {[%clk 0:01:19.3]} 18. h4 {[%clk
0:00:19.6]} 18... Kb8 {[%clk 0:01:18.7]} 19. Rc1 {[%clk 0:00:14.7]} 19... dxc3
{[%clk 0:01:06.9]} 20. bxc3 {[%clk 0:00:12.7]} 20... Qd7 {[%clk 0:01:07.2]} 21.
d4 {[%clk 0:00:03.8]} 21... cxd4 {[%clk 0:01:06]} 22. Nc4 {[%clk 0:00:02.9]}
22... dxc3 {[%clk 0:01:01.6]} 23. Qb3 {[%clk 0:00:02.9]} 23... Qd5 {[%clk
0:00:27.4]} 0-1

[Event "Early-Titled-Tuesday-Blitz-October-17-2023"]
[Site "Chess.com"]
[Date "2023.10.17"]
[Round "6"]
[White "RobertoJBM"]
[Black "GlavkonVVS"]
[Result "1-0"]
[WhiteElo "2794"]
[BlackElo "2575"]
[TimeControl "180+1"]
[EndTime "9:10:24 PDT"]
[Termination "RobertoJBM won by resignation"]

1. e4 {[%clk 0:03:00.9]} 1... Nf6 {[%clk 0:02:59.8]} 2. e5 {[%clk 0:03:00.2]}
2... Nd5 {[%clk 0:03:00.2]} 3. c4 {[%clk 0:02:59.9]} 3... Nb6 {[%clk 0:03:00.3]}
4. d4 {[%clk 0:03:00.3]} 4... d6 {[%clk 0:03:00.3]} 5. exd6 {[%clk 0:02:59.9]}
5... cxd6 {[%clk 0:03:00.7]} 6. Nc3 {[%clk 0:03:00.3]} 6... g6 {[%clk
0:03:01.1]} 7. Be3 {[%clk 0:03:00.5]} 7... Bg7 {[%clk 0:03:01.4]} 8. Qd2 {[%clk
0:03:01]} 8... O-O {[%clk 0:02:57.8]} 9. Rc1 {[%clk 0:02:59.8]} 9... Nc6 {[%clk
0:02:56.4]} 10. d5 {[%clk 0:02:59.7]} 10... Ne5 {[%clk 0:02:56.5]} 11. b3 {[%clk
0:03:00.2]} 11... Ng4 {[%clk 0:02:48.5]} 12. Bd4 {[%clk 0:03:00.4]} 12... e5
{[%clk 0:02:47.4]} 13. dxe6 {[%clk 0:03:00.2]} 13... fxe6 {[%clk 0:02:45.6]} 14.
Bxg7 {[%clk 0:02:59.8]} 14... Kxg7 {[%clk 0:02:33]} 15. f3 {[%clk 0:02:46.9]}
15... Ne5 {[%clk 0:02:27.9]} 16. f4 {[%clk 0:02:42.8]} 16... Ng4 {[%clk
0:02:03.1]} 17. Nf3 {[%clk 0:02:27.5]} 17... e5 {[%clk 0:01:52.8]} 18. h3 {[%clk
0:02:18.6]} 18... Nh6 {[%clk 0:01:49.4]} 19. fxe5 {[%clk 0:02:14.9]} 19... Nf5
{[%clk 0:01:42.7]} 20. Ne4 {[%clk 0:02:03.3]} 20... d5 {[%clk 0:01:31.5]} 21.
cxd5 {[%clk 0:01:59.8]} 21... Nxd5 {[%clk 0:01:23.5]} 22. Bc4 {[%clk 0:01:54.7]}
22... Nfe3 {[%clk 0:01:20.5]} 23. Bxd5 {[%clk 0:01:48]} 23... Nxd5 {[%clk
0:01:11.1]} 24. O-O {[%clk 0:01:45.3]} 24... Be6 {[%clk 0:00:55.5]} 25. Nfg5
{[%clk 0:01:31.7]} 25... Rxf1+ {[%clk 0:00:49.9]} 26. Rxf1 {[%clk 0:01:31]}
26... Bg8 {[%clk 0:00:49.6]} 27. e6 {[%clk 0:01:13.1]} 27... Qb6+ {[%clk
0:00:31.4]} 28. Kh1 {[%clk 0:01:11.9]} 28... Rd8 {[%clk 0:00:17.6]} 29. Qb2+
{[%clk 0:01:10.2]} 29... Kh6 {[%clk 0:00:17.6]} 30. Nf7+ {[%clk 0:00:58.3]}
30... Bxf7 {[%clk 0:00:17.6]} 31. exf7 {[%clk 0:00:42.1]} 31... Rf8 {[%clk
0:00:17.2]} 32. Qd2+ {[%clk 0:00:36]} 32... Ne3 {[%clk 0:00:17.2]} 33. Rf3
{[%clk 0:00:32.1]} 1-0

[Event "Early-Titled-Tuesday-Blitz-October-17-2023"]
[Site "Chess.com"]
[Date "2023.10.17"]
[Round "6"]
[White "suyu28"]
[Black "jcibarra"]
[Result "1-0"]
[WhiteElo "2745"]
[BlackElo "2886"]
[TimeControl "180+1"]
[EndTime "9:10:28 PDT"]
[Termination "suyu28 won by checkmate"]

1. e4 {[%clk 0:03:00.2]} 1... Nc6 {[%clk 0:02:58.8]} 2. Nf3 {[%clk 0:02:59.7]}
2... d6 {[%clk 0:02:58.3]} 3. d4 {[%clk 0:02:55.8]} 3... Nf6 {[%clk 0:02:58.5]}
4. Nc3 {[%clk 0:02:53.9]} 4... g6 {[%clk 0:02:58.4]} 5. h3 {[%clk 0:02:52.9]}
5... Bg7 {[%clk 0:02:58.3]} 6. Be2 {[%clk 0:02:53]} 6... O-O {[%clk 0:02:58.4]}
7. O-O {[%clk 0:02:53.1]} 7... e5 {[%clk 0:02:58.7]} 8. dxe5 {[%clk 0:02:53.5]}
8... Nxe5 {[%clk 0:02:57.8]} 9. Nxe5 {[%clk 0:02:53.4]} 9... dxe5 {[%clk
0:02:58.7]} 10. Bc4 {[%clk 0:02:52.3]} 10... Qe7 {[%clk 0:02:57.4]} 11. Be3
{[%clk 0:02:50.8]} 11... c6 {[%clk 0:02:56.7]} 12. a4 {[%clk 0:02:47.4]} 12...
a5 {[%clk 0:02:56.1]} 13. Qe2 {[%clk 0:02:37.4]} 13... Nh5 {[%clk 0:02:53.9]}
14. Rfd1 {[%clk 0:02:19.1]} 14... Nf4 {[%clk 0:02:53.8]} 15. Qf3 {[%clk
0:02:19.2]} 15... Ne6 {[%clk 0:02:54.4]} 16. Ne2 {[%clk 0:02:13.9]} 16... Ng5
{[%clk 0:02:46.4]} 17. Bxg5 {[%clk 0:02:11]} 17... Qxg5 {[%clk 0:02:47.3]} 18.
Rd6 {[%clk 0:02:01.4]} 18... Qe7 {[%clk 0:02:25.3]} 19. Rad1 {[%clk 0:02:00.7]}
19... Kh8 {[%clk 0:02:08.7]} 20. Ng3 {[%clk 0:01:58.7]} 20... h6 {[%clk
0:02:02.5]} 21. Kh1 {[%clk 0:01:51.7]} 21... Kh7 {[%clk 0:02:00.2]} 22. Qb3
{[%clk 0:01:32.5]} 22... h5 {[%clk 0:01:47.5]} 23. Qf3 {[%clk 0:01:31.4]} 23...
Bh6 {[%clk 0:01:04.9]} 24. c3 {[%clk 0:00:38.4]} 24... Kg7 {[%clk 0:01:04.2]}
25. R1d3 {[%clk 0:00:28.4]} 25... Qh4 {[%clk 0:00:55.6]} 26. Kg1 {[%clk
0:00:25.3]} 26... Qe7 {[%clk 0:00:49.4]} 27. Nf5+ {[%clk 0:00:24.9]} 27... gxf5
{[%clk 0:00:46.1]} 28. Qxh5 {[%clk 0:00:25.1]} 28... Bg5 {[%clk 0:00:36.8]} 29.
Rg3 {[%clk 0:00:17.1]} 29... f6 {[%clk 0:00:34.5]} 30. Rxg5+ {[%clk 0:00:16.2]}
30... fxg5 {[%clk 0:00:28.1]} 31. Qh6# {[%clk 0:00:13.5]} 1-0

[Event "Early-Titled-Tuesday-Blitz-October-17-2023"]
[Site "Chess.com"]
[Date "2023.10.17"]
[Round "6"]
[White "GMJustin"]
[Black "Jojo_898"]
[Result "1-0"]
[WhiteElo "2182"]
[BlackElo "2345"]
[TimeControl "180+1"]
[EndTime "9:10:29 PDT"]
[Termination "GMJustin won by checkmate"]

1. d4 {[%clk 0:02:38.2]} 1... Nf6 {[%clk 0:02:59]} 2. c4 {[%clk 0:02:37.8]} 2...
e6 {[%clk 0:02:58.5]} 3. Nf3 {[%clk 0:02:37.4]} 3... b6 {[%clk 0:02:58.7]} 4. g3
{[%clk 0:02:36.4]} 4... Bb7 {[%clk 0:02:58.9]} 5. Bg2 {[%clk 0:02:35.9]} 5...
Be7 {[%clk 0:02:58.4]} 6. O-O {[%clk 0:02:33.2]} 6... O-O {[%clk 0:02:58.3]} 7.
d5 {[%clk 0:02:30.4]} 7... exd5 {[%clk 0:02:57.6]} 8. Nh4 {[%clk 0:02:29.8]}
8... c6 {[%clk 0:02:49.6]} 9. cxd5 {[%clk 0:02:28.5]} 9... Nxd5 {[%clk
0:02:49.1]} 10. Nf5 {[%clk 0:02:28]} 10... d6 {[%clk 0:02:38.1]} 11. Bxd5 {[%clk
0:02:16.4]} 11... cxd5 {[%clk 0:02:37.6]} 12. Nc3 {[%clk 0:02:16.6]} 12... Qd7
{[%clk 0:02:16.2]} 13. Nxd5 {[%clk 0:02:13.6]} 13... Bd8 {[%clk 0:02:05.6]} 14.
e4 {[%clk 0:02:09.6]} 14... Kh8 {[%clk 0:01:46.1]} 15. Qd4 {[%clk 0:01:51]}
15... f6 {[%clk 0:01:42.4]} 16. Nc3 {[%clk 0:01:38.3]} 16... Bc7 {[%clk
0:01:34.5]} 17. Bf4 {[%clk 0:01:17.6]} 17... Nc6 {[%clk 0:01:33.5]} 18. Qa4
{[%clk 0:01:09.4]} 18... a6 {[%clk 0:01:18.6]} 19. Nd5 {[%clk 0:00:59.8]} 19...
b5 {[%clk 0:01:13.8]} 20. Qa3 {[%clk 0:00:58.3]} 20... Ne5 {[%clk 0:01:03.9]}
21. Nxc7 {[%clk 0:00:50.8]} 21... Qxc7 {[%clk 0:01:02]} 22. Nxd6 {[%clk
0:00:41.7]} 22... Bc6 {[%clk 0:00:44.5]} 23. Rac1 {[%clk 0:00:37.2]} 23... Rad8
{[%clk 0:00:41.7]} 24. Bxe5 {[%clk 0:00:32.3]} 24... fxe5 {[%clk 0:00:40.9]} 25.
Nf5 {[%clk 0:00:22.9]} 25... Qb7 {[%clk 0:00:33.3]} 26. f3 {[%clk 0:00:16.3]}
26... g6 {[%clk 0:00:31.7]} 27. Ne3 {[%clk 0:00:06.5]} 27... Rd2 {[%clk
0:00:24]} 28. Qxf8# {[%clk 0:00:05.6]} 1-0

[Event "Early-Titled-Tuesday-Blitz-October-17-2023"]
[Site "Chess.com"]
[Date "2023.10.17"]
[Round "6"]
[White "alexrustemov"]
[Black "szefru"]
[Result "1-0"]
[WhiteElo "2801"]
[BlackElo "2344"]
[TimeControl "180+1"]
[EndTime "9:10:31 PDT"]
[Termination "alexrustemov won on time"]

1. d4 {[%clk 0:03:00.9]} 1... Nf6 {[%clk 0:02:58.9]} 2. c4 {[%clk 0:03:01.3]}
2... g6 {[%clk 0:02:58.4]} 3. Nf3 {[%clk 0:03:01.9]} 3... Bg7 {[%clk 0:02:56.6]}
4. g3 {[%clk 0:03:02.5]} 4... O-O {[%clk 0:02:54.6]} 5. Bg2 {[%clk 0:03:03]}
5... c6 {[%clk 0:02:54.8]} 6. O-O {[%clk 0:03:03.1]} 6... d5 {[%clk 0:02:55]} 7.
Qb3 {[%clk 0:03:03.4]} 7... dxc4 {[%clk 0:02:43.2]} 8. Qxc4 {[%clk 0:03:04.3]}
8... Be6 {[%clk 0:02:43.5]} 9. Qa4 {[%clk 0:03:03.5]} 9... Nbd7 {[%clk
0:02:38.1]} 10. Rd1 {[%clk 0:03:00.9]} 10... Nb6 {[%clk 0:02:38.2]} 11. Qa5
{[%clk 0:02:51.7]} 11... Nbd5 {[%clk 0:02:04.2]} 12. Qxd8 {[%clk 0:02:48.8]}
12... Rfxd8 {[%clk 0:02:05.1]} 13. Na3 {[%clk 0:02:32.1]} 13... Nb4 {[%clk
0:01:47.2]} 14. b3 {[%clk 0:02:29.7]} 14... c5 {[%clk 0:01:44.6]} 15. Bb2 {[%clk
0:02:27.1]} 15... Ne4 {[%clk 0:01:22.1]} 16. Ne5 {[%clk 0:02:20.4]} 16... cxd4
{[%clk 0:01:09.1]} 17. Rxd4 {[%clk 0:02:08.7]} 17... Bxe5 {[%clk 0:01:01.9]} 18.
Rxd8+ {[%clk 0:02:07.2]} 18... Rxd8 {[%clk 0:01:01.1]} 19. Bxe5 {[%clk
0:02:07.9]} 19... Nc5 {[%clk 0:00:47.2]} 20. Bc3 {[%clk 0:01:46.1]} 20... a5
{[%clk 0:00:36.2]} 21. h3 {[%clk 0:01:33.3]} 21... b6 {[%clk 0:00:28.6]} 22. g4
{[%clk 0:01:25.6]} 22... Rd7 {[%clk 0:00:08.5]} 23. Kh2 {[%clk 0:01:23]} 23...
Bd5 {[%clk 0:00:08.1]} 24. f3 {[%clk 0:01:14]} 24... f5 {[%clk 0:00:07.4]} 25.
Kg3 {[%clk 0:01:12.9]} 25... e6 {[%clk 0:00:05.8]} 26. Bxb4 {[%clk 0:00:57]}
26... axb4 {[%clk 0:00:05.7]} 27. Nc2 {[%clk 0:00:57.7]} 27... Bb7 {[%clk
0:00:01.8]} 28. Nxb4 {[%clk 0:00:55.5]} 28... Rd2 {[%clk 0:00:02.7]} 29. Bf1
{[%clk 0:00:53]} 29... Nd7 {[%clk 0:00:02]} 30. Rc1 {[%clk 0:00:45.3]} 30... Kf7
{[%clk 0:00:01.7]} 31. Rc7 {[%clk 0:00:44.7]} 31... Ba8 {[%clk 0:00:01.7]} 32.
Ra7 {[%clk 0:00:35.6]} 1-0

[Event "Early-Titled-Tuesday-Blitz-October-17-2023"]
[Site "Chess.com"]
[Date "2023.10.17"]
[Round "6"]
[White "Journey_to_GrandMaster_YT"]
[Black "Levanzovsky"]
[Result "1-0"]
[WhiteElo "2621"]
[BlackElo "2405"]
[TimeControl "180+1"]
[EndTime "9:10:34 PDT"]
[Termination "Journey_to_GrandMaster_YT won by resignation"]

1. c4 {[%clk 0:03:00.9]} 1... e6 {[%clk 0:02:59.9]} 2. Nc3 {[%clk 0:02:59.1]}
2... Nf6 {[%clk 0:03:00.3]} 3. e4 {[%clk 0:02:59.2]} 3... d5 {[%clk 0:03:00.1]}
4. cxd5 {[%clk 0:02:53.3]} 4... exd5 {[%clk 0:03:01]} 5. e5 {[%clk 0:02:53.8]}
5... d4 {[%clk 0:03:01]} 6. exf6 {[%clk 0:02:53.9]} 6... dxc3 {[%clk 0:03:01.9]}
7. fxg7 {[%clk 0:02:51.5]} 7... cxd2+ {[%clk 0:02:56.4]} 8. Bxd2 {[%clk
0:02:49.3]} 8... Bxg7 {[%clk 0:02:56.2]} 9. Qb3 {[%clk 0:02:48.6]} 9... O-O
{[%clk 0:02:54.1]} 10. Nf3 {[%clk 0:02:44.1]} 10... Re8+ {[%clk 0:02:47.5]} 11.
Be3 {[%clk 0:02:44]} 11... Qf6 {[%clk 0:02:37.5]} 12. Bc4 {[%clk 0:02:43.3]}
12... Qxb2 {[%clk 0:02:14.8]} 13. Bxf7+ {[%clk 0:02:30.4]} 13... Kh8 {[%clk
0:02:14.7]} 14. Qxb2 {[%clk 0:02:13.6]} 14... Bxb2 {[%clk 0:02:15.6]} 15. Bxe8
{[%clk 0:02:01.5]} 15... Bxa1 {[%clk 0:02:15.9]} 16. Ke2 {[%clk 0:01:57]} 16...
Bf6 {[%clk 0:02:11.5]} 17. Rc1 {[%clk 0:01:32.4]} 17... c6 {[%clk 0:02:10.2]}
18. Rc4 {[%clk 0:01:15.5]} 18... Be6 {[%clk 0:02:08.4]} 19. Rf4 {[%clk
0:01:13.6]} 19... Kg7 {[%clk 0:02:05.5]} 20. g4 {[%clk 0:01:03.9]} 20... Na6
{[%clk 0:01:46.7]} 21. g5 {[%clk 0:00:48.7]} 21... Bc3 {[%clk 0:01:45.6]} 22.
Bh5 {[%clk 0:00:44.6]} 22... Bxa2 {[%clk 0:01:38.6]} 23. Kd3 {[%clk 0:00:39.1]}
23... Bb2 {[%clk 0:01:24.7]} 24. Kc2 {[%clk 0:00:38.3]} 24... Ba3 {[%clk
0:01:09.8]} 25. Ra4 {[%clk 0:00:22.1]} 25... Be7 {[%clk 0:01:08.1]} 26. Bd4+
{[%clk 0:00:19.4]} 26... Kg8 {[%clk 0:01:07.7]} 27. Rxa2 {[%clk 0:00:17.5]}
27... Nb4+ {[%clk 0:01:07.7]} 28. Kb3 {[%clk 0:00:18.1]} 28... Nxa2 {[%clk
0:01:08.6]} 29. Kxa2 {[%clk 0:00:18.6]} 29... Rf8 {[%clk 0:01:09.1]} 30. Bg4
{[%clk 0:00:15.2]} 30... Rf4 {[%clk 0:01:08.2]} 31. h3 {[%clk 0:00:14.4]} 31...
c5 {[%clk 0:01:06]} 32. Be5 {[%clk 0:00:13.8]} 32... Ra4+ {[%clk 0:01:06.5]} 33.
Kb3 {[%clk 0:00:13.7]} 33... Rb4+ {[%clk 0:01:06.4]} 34. Kc3 {[%clk 0:00:13.3]}
34... a5 {[%clk 0:01:05.5]} 35. Be6+ {[%clk 0:00:13.2]} 35... Kf8 {[%clk
0:01:06.2]} 36. h4 {[%clk 0:00:11.1]} 36... a4 {[%clk 0:01:02.9]} 37. h5 {[%clk
0:00:11.7]} 37... a3 {[%clk 0:01:02.8]} 38. g6 {[%clk 0:00:12.3]} 38... hxg6
{[%clk 0:00:58.6]} 39. hxg6 {[%clk 0:00:13]} 39... Rg4 {[%clk 0:00:52.1]} 40.
Bxg4 {[%clk 0:00:12]} 40... Ke8 {[%clk 0:00:47.5]} 41. g7 {[%clk 0:00:11.7]}
41... Kf7 {[%clk 0:00:47.9]} 42. Be6+ {[%clk 0:00:12]} 42... Kxe6 {[%clk
0:00:46.9]} 43. g8=Q+ {[%clk 0:00:12.6]} 1-0

[Event "Early-Titled-Tuesday-Blitz-October-17-2023"]
[Site "Chess.com"]
[Date "2023.10.17"]
[Round "6"]
[White "McCarthyStone"]
[Black "aghasiyevkamal"]
[Result "1-0"]
[WhiteElo "2396"]
[BlackElo "2585"]
[TimeControl "180+1"]
[EndTime "9:10:37 PDT"]
[Termination "McCarthyStone won by checkmate"]

1. e4 {[%clk 0:03:00.9]} 1... d6 {[%clk 0:02:56.9]} 2. g3 {[%clk 0:03:01]} 2...
e5 {[%clk 0:02:55.5]} 3. c4 {[%clk 0:03:01]} 3... Nf6 {[%clk 0:02:55.8]} 4. Bg2
{[%clk 0:03:00.5]} 4... Nc6 {[%clk 0:02:56.3]} 5. Nc3 {[%clk 0:03:00.7]} 5...
Be7 {[%clk 0:02:55.5]} 6. Nge2 {[%clk 0:03:01]} 6... h5 {[%clk 0:02:55.1]} 7. h3
{[%clk 0:02:58.7]} 7... a5 {[%clk 0:02:48.1]} 8. d4 {[%clk 0:02:58.8]} 8... exd4
{[%clk 0:02:39.4]} 9. Nxd4 {[%clk 0:02:58.6]} 9... Ne5 {[%clk 0:02:38.2]} 10. b3
{[%clk 0:02:56.4]} 10... Nfd7 {[%clk 0:02:32.3]} 11. f4 {[%clk 0:02:55.1]} 11...
Nc6 {[%clk 0:02:31.7]} 12. Be3 {[%clk 0:02:50.1]} 12... Nc5 {[%clk 0:02:28.4]}
13. O-O {[%clk 0:02:46.4]} 13... Nxd4 {[%clk 0:02:27.3]} 14. Bxd4 {[%clk
0:02:46.4]} 14... Ne6 {[%clk 0:02:24.2]} 15. Bf2 {[%clk 0:02:43.2]} 15... h4
{[%clk 0:02:21.8]} 16. Nd5 {[%clk 0:02:27.9]} 16... hxg3 {[%clk 0:02:20.4]} 17.
Bxg3 {[%clk 0:02:28.8]} 17... Bh4 {[%clk 0:02:14.5]} 18. Bh2 {[%clk 0:02:10]}
18... c6 {[%clk 0:02:11]} 19. f5 {[%clk 0:01:54.5]} 19... cxd5 {[%clk
0:01:57.6]} 20. fxe6 {[%clk 0:01:54.6]} 20... fxe6 {[%clk 0:01:58.3]} 21. exd5
{[%clk 0:01:45.6]} 21... e5 {[%clk 0:01:56.5]} 22. Qd3 {[%clk 0:01:42.3]} 22...
Qg5 {[%clk 0:01:51.7]} 23. Rf3 {[%clk 0:01:25.7]} 23... Bd7 {[%clk 0:01:39.3]}
24. Raf1 {[%clk 0:01:22.7]} 24... O-O-O {[%clk 0:01:39]} 25. c5 {[%clk
0:01:14.5]} 25... Rh6 {[%clk 0:01:36.6]} 26. c6 {[%clk 0:01:13.9]} 26... Be8
{[%clk 0:01:31.2]} 27. Qb5 {[%clk 0:01:02.3]} 27... Qe7 {[%clk 0:01:24.1]} 28.
Qxa5 {[%clk 0:01:01.9]} 28... Qc7 {[%clk 0:01:20.4]} 29. Qa8+ {[%clk 0:01:01]}
29... Qb8 {[%clk 0:01:20.2]} 30. cxb7+ {[%clk 0:00:55.6]} 30... Kd7 {[%clk
0:01:20.2]} 31. Qa4+ {[%clk 0:00:32.6]} 31... Ke7 {[%clk 0:01:19]} 32. Qg4
{[%clk 0:00:29.3]} 32... g5 {[%clk 0:01:10.7]} 33. Qf5 {[%clk 0:00:09.3]} 33...
Rg6 {[%clk 0:00:42.4]} 34. Qf8+ {[%clk 0:00:08.6]} 34... Kd7 {[%clk 0:00:42.3]}
35. Rf7+ {[%clk 0:00:09.1]} 35... Bxf7 {[%clk 0:00:40.5]} 36. Rxf7# {[%clk
0:00:07.5]} 1-0

[Event "Early-Titled-Tuesday-Blitz-October-17-2023"]
[Site "Chess.com"]
[Date "2023.10.17"]
[Round "6"]
[White "stasOR4ik"]
[Black "Heinza9"]
[Result "0-1"]
[WhiteElo "2440"]
[BlackElo "2310"]
[TimeControl "180+1"]
[EndTime "9:10:37 PDT"]
[Termination "Heinza9 won by resignation"]

1. e4 {[%clk 0:03:00.9]} 1... e5 {[%clk 0:02:59.2]} 2. Nf3 {[%clk 0:02:59.7]}
2... Nc6 {[%clk 0:02:59.4]} 3. Bb5 {[%clk 0:02:59.7]} 3... f5 {[%clk 0:02:59.6]}
4. Bxc6 {[%clk 0:02:52.4]} 4... dxc6 {[%clk 0:02:58.9]} 5. Nxe5 {[%clk
0:02:52.8]} 5... Nf6 {[%clk 0:02:59.2]} 6. exf5 {[%clk 0:02:50.6]} 6... Bd6
{[%clk 0:02:59.2]} 7. d4 {[%clk 0:02:48.3]} 7... Bxf5 {[%clk 0:02:59.1]} 8. O-O
{[%clk 0:02:47.2]} 8... O-O {[%clk 0:02:59]} 9. Nd2 {[%clk 0:02:31.9]} 9... Bxe5
{[%clk 0:02:50.6]} 10. dxe5 {[%clk 0:02:31.5]} 10... Ng4 {[%clk 0:02:50.9]} 11.
Nf3 {[%clk 0:01:59.6]} 11... Qxd1 {[%clk 0:02:48.7]} 12. Rxd1 {[%clk 0:02:00.5]}
12... Bxc2 {[%clk 0:02:48]} 13. Rd7 {[%clk 0:02:00.6]} 13... Be4 {[%clk
0:02:40.6]} 14. Ng5 {[%clk 0:01:50.3]} 14... Rad8 {[%clk 0:02:27.2]} 15. e6
{[%clk 0:01:41.7]} 15... Rxd7 {[%clk 0:02:20.9]} 16. exd7 {[%clk 0:01:41.2]}
16... Bf5 {[%clk 0:02:19.1]} 17. Bf4 {[%clk 0:01:35.4]} 17... Bxd7 {[%clk
0:02:17.1]} 18. Bxc7 {[%clk 0:01:35.2]} 18... h6 {[%clk 0:02:15.7]} 19. Ne4
{[%clk 0:01:34.2]} 19... Be6 {[%clk 0:02:07.6]} 20. a3 {[%clk 0:01:20.5]} 20...
Bd5 {[%clk 0:02:05.8]} 21. f3 {[%clk 0:01:05.6]} 21... Bxe4 {[%clk 0:01:57.6]}
22. fxe4 {[%clk 0:01:06.5]} 22... Re8 {[%clk 0:01:55.2]} 23. Re1 {[%clk
0:01:04.8]} 23... Nf6 {[%clk 0:01:55.3]} 24. e5 {[%clk 0:01:04.3]} 24... Nd5
{[%clk 0:01:55.5]} 25. Bd6 {[%clk 0:01:02.6]} 25... Kf7 {[%clk 0:01:55.2]} 26.
Kf2 {[%clk 0:01:02.1]} 26... Ke6 {[%clk 0:01:55.2]} 27. Re2 {[%clk 0:00:58.8]}
27... Nb6 {[%clk 0:01:52.9]} 28. b3 {[%clk 0:00:49.6]} 28... Nc8 {[%clk
0:01:30.3]} 29. Bb8 {[%clk 0:00:47.9]} 29... b6 {[%clk 0:01:18.4]} 30. Kf3
{[%clk 0:00:47.4]} 30... Re7 {[%clk 0:01:18.3]} 31. Kg4 {[%clk 0:00:46.3]} 31...
Rb7 {[%clk 0:01:18]} 32. Bd6 {[%clk 0:00:43.3]} 32... Nxd6 {[%clk 0:01:18]} 33.
exd6+ {[%clk 0:00:44.2]} 33... Kxd6 {[%clk 0:01:18.4]} 34. Kf5 {[%clk
0:00:44.6]} 34... Re7 {[%clk 0:01:16.4]} 35. Rd2+ {[%clk 0:00:42.2]} 35... Kc5
{[%clk 0:01:13]} 36. Kg6 {[%clk 0:00:40.8]} 36... a5 {[%clk 0:01:10.5]} 37. g4
{[%clk 0:00:33.3]} 37... Kb5 {[%clk 0:01:03.2]} 38. h4 {[%clk 0:00:21.2]} 38...
c5 {[%clk 0:01:02.8]} 39. Rf2 {[%clk 0:00:20.1]} 39... Re4 {[%clk 0:00:59]} 40.
Rg2 {[%clk 0:00:20]} 40... Re7 {[%clk 0:00:58.4]} 41. g5 {[%clk 0:00:18.8]}
41... hxg5 {[%clk 0:00:57.9]} 42. hxg5 {[%clk 0:00:19.7]} 42... a4 {[%clk
0:00:56.7]} 43. bxa4+ {[%clk 0:00:19.2]} 43... Kxa4 {[%clk 0:00:57]} 44. Rf2
{[%clk 0:00:19.3]} 44... c4 {[%clk 0:00:55.5]} 45. Rf7 {[%clk 0:00:18.9]} 45...
Rxf7 {[%clk 0:00:54.1]} 46. Kxf7 {[%clk 0:00:19.4]} 46... c3 {[%clk 0:00:54.6]}
47. Kxg7 {[%clk 0:00:20.2]} 47... c2 {[%clk 0:00:55.1]} 48. g6 {[%clk
0:00:21.1]} 48... c1=Q {[%clk 0:00:55.1]} 49. Kh8 {[%clk 0:00:22]} 49... Qh6+
{[%clk 0:00:54.2]} 50. Kg8 {[%clk 0:00:20.2]} 50... Qxg6+ {[%clk 0:00:54.5]} 51.
Kh8 {[%clk 0:00:20.9]} 51... Qg5 {[%clk 0:00:52.2]} 0-1